Cogmind - Beta 16 @@@ ROGUE MODE // 2025.10.27 @ 21:10:48 Player: Moodge Result: Destroyed by Y-45 Defender with Beam Rifle Performance ------------- Evolutions (1) 500 Regions Visited (2) 400 Robots Destroyed (15) 75 Value Destroyed (503) 503 Prototype IDs (0) 0 Alien Tech Used (0) 0 Bonus (0) 0 TOTAL SCORE: 1478 Bonus ------- None Cogmind --------- Core Integrity 0/400 Matter 214/300 Energy 80/265 System Corruption 0% Temperature Cool (9) Movement Core (1650) Ox32 Location -9/Materials Parts ------- > --- POWER (1) -------- Improved Ion Engine > --- PROPULSION (4) --- (None) > --- UTILITY (2) ------ Medium Storage Unit Huge Storage Unit > --- WEAPON (2) ------- (None) > --- INVENTORY (25) --- Small Storage Unit Sensor Array Welding Torch Peak State ------------ > --- POWER ------------ Light Nuclear Core > --- PROPULSION ------- Aluminum Leg Aluminum Leg > --- UTILITY ---------- Small Storage Unit Medium Storage Unit > --- WEAPON ----------- Medium Laser Small Laser > --- INVENTORY -------- Ion Engine Light Treads Light Treads Aluminum Leg Wheel Wheel Huge Storage Unit Sensor Array Assault Rifle Welding Torch [Rating: 10] Favorites ----------- Power Ion Engine Engine Ion Engine Power Core Light Nuclear Core Propulsion Aluminum Leg Treads Light Treads Leg Aluminum Leg Utility Medium Storage Unit Storage Medium Storage Unit Weapon Small Laser Energy Gun Small Laser Ballistic Gun Assault Rifle Special Weapon Welding Torch Build | -11 -10 -9 ------- Run | Yrd Mat Mat Slots Evolved 2 | . . 2 Power . | . . . Propulsion 2 | . . 2 Utility . | . . . Weapon . | . . . Parts Attached 16 | . 8 8 Power 4 | . 2 2 Engine 2 | . . 2 Core 2 | . 2 . Reactor . | . . . Propulsion 6 | . 2 4 Treads 2 | . . 2 Leg 4 | . 2 2 Wheel . | . . . Hover . | . . . Flight . | . . . Utility 2 | . 1 1 Device . | . . . Storage 2 | . 1 1 Processor . | . . . Hackware . | . . . Protection . | . . . Artifact . | . . . Weapon 4 | . 3 1 Energy Gun 2 | . 2 . Energy Cannon . | . . . Ballistic Gun 1 | . . 1 Ballistic Cannon . | . . . Launcher . | . . . Special Weapon 1 | . 1 . Impact Weapon . | . . . Slashing Weapon . | . . . Piercing Weapon . | . . . Special Melee Weapon . | . . . Unidentified Prototypes . | . . . Parts Lost 11 | . . 11 Power 2 | . . 2 Propulsion 6 | . . 6 Utility . | . . . Weapon 3 | . . 3 Highest Loss Streak 5 | . . 5 To Critical Strikes . | . . . Average Backups 7 | 6 8 5 Power . | 1 1 . Propulsion 3 | 4 4 1 Utility 1 | . 1 2 Weapon 1 | 1 1 . Tool/Special . | . . . Unused Backups 8 | . 6 2 Power 2 | . 2 . Propulsion 5 | . 4 1 Utility 1 | . . 1 Weapon . | . . . Tool/Special . | . . . Average Slot Usage (%) 89 | . 96 70 Engine 10 | . 12 3 Core 2 | . 1 4 Treads 1 | . . 7 Leg 26 | . 28 20 Storage 25 | . 26 22 Energy Gun 14 | . 17 8 Ballistic Gun 5 | . 5 4 Special Weapon 1 | . 2 . Peak Build Rating 10 | 6 10 10 Average Rating 7 | 6 7 7 On Entrance 7 | 6 6 10 Avg Prop Armor Cover (%) 13 | . . 13 Naked Turns . | . . . Heaviest Build 97 | 13 23 97 Greatest Support 40 | 20 20 40 Greatest Overweight (x) 29 | . 1 29 Average Overweight (x) . | . . 1 Largest Inventory Capacity 25 | 8 10 25 Average Capacity 11 | 8 9 15 Most Carried 10 | 6 10 9 Average Carried 7 | 6 8 4 Final Capacity 25 | 8 10 25 Final Carried 10 | 6 10 3 Class Distribution -------------------- 91% | Mutant 8% | Scavenger-Mutant Dominant Class ---------------- Mutant | -10/Materials Mutant | -9/Materials Resources | -11 -10 -9 ----------- Run | Yrd Mat Mat Matter Collected 467 | 200 197 70 Remotely . | . . . Salvage Created 605 | . 414 191 Parts 29 | . 19 10 Haulers Intercepted . | . . . Recyclers Shooed 2 | . 1 1 Parts Field Recycled . | . . . Retrieved Matter . | . . . Parts Self-Destructed . | . . . Prevented . | . . . Parts Restored . | . . . Kills | -11 -10 -9 ------- Run | Yrd Mat Mat Combat Hostiles Destroyed 12 | . 8 4 Guns 12 | . 8 4 Classes Destroyed 5 | . 4 1 Worker 1 | . 1 . Operator 1 | . 1 . Watcher 1 | . 1 . Grunt 11 | . 8 3 Duelist 1 | . . 1 Best Kill Streak 3 | . 3 2 Combat Bots Only 2 | . 2 2 Max Kills in Single Turn 2 | . 2 1 Gunslinging . | . . . Exploded . | . . . Melee . | . . . Uniques/NPCs Destroyed . | . . . Combat | -11 -10 -9 -------- Run | Yrd Mat Mat Hostile Shots Fired 194 | . 57 137 Missed 49 | . 13 36 Hits 145 | . 44 101 Melee 5 | . . 5 Projectile 140 | . 44 96 Critical Strikes 1 | . . 1 Damage Taken 1892 | . 617 1275 Core 573 | . 165 408 Absorbed by Shields . | . . . Core Remaining (%) 67 | 100 34 . Volleys Fired 88 | . 45 43 Largest 2 | . 2 2 Hottest 90 | . 90 90 Shots Fired 128 | . 84 44 Gun 124 | . 80 44 Cannon . | . . . Launcher . | . . . Special 4 | . 4 . Kinetic 37 | . . 37 Thermal 91 | . 84 7 Explosive . | . . . Electromagnetic . | . . . Robot Hit Streak 16 | . 16 7 Robot Miss Streak 4 | . 4 2 Penetration Max . | . . . Secondary Targets 3 | . 3 . Max Gunslinging Chain 1 | . 1 . Shots Hit Robots 85 | . 55 30 Core Hits 37 | . 25 12 Critical Kills . | . . . Critical Parts Destroyed . | . . . Critical Strikes 3 | . 2 1 Burn 3 | . 2 1 Melee Attacks . | . . . Impact . | . . . Slashing . | . . . Piercing . | . . . Sneak Attacks . | . . . Combat Hostiles . | . . . Follow-up Attacks . | . . . Damage Inflicted 1151 | . 680 471 Guns 1061 | . 674 387 Cannons . | . . . Explosions 84 | . . 84 Melee . | . . . Ramming 6 | . 6 . Kinetic 322 | . . 322 Thermal 739 | . 674 65 Explosive . | . . . Electromagnetic 84 | . . 84 Impact . | . . . Slashing . | . . . Piercing . | . . . Highest Corruption 1 | . 1 . Average Corruption 1 | . 1 . Corruption Purged . | . . . Corruption Blocked . | . . . Overload Shots . | . . . Overflow Damage . | . . . Projectiles . | . . . Explosions . | . . . Melee . | . . . Knockbacks . | . . . Impact . | . . . Kinetic . | . . . Secondary . | . . . Self-Inflicted Damage 36 | . . 36 Shots 1 | . . 1 Rammed . | . . . Targets Rammed 1 | . 1 . Kicked 1 | . 1 . Crushed . | . . . Highest Temperature 477 | . 477 65 Average Temperature 187 | . 197 45 Received Heat Transfer 882 | . 306 576 Effects 11 | . 11 . Shutdowns 2 | . 2 . Interference 4 | . 4 . Matter Decay 2 | . 2 . Damage (major) 3 | . 3 . Siege Activations . | . . . Martial Activations . | . . . Shielding Activations . | . . . Robots Disrupted 1 | . . 1 Combat Hostiles 1 | . . 1 Robots Corrupted . | . . . Combat Hostiles . | . . . Parts Fried . | . . . Impact Corruptions . | . . . Robots Melted . | . . . Combat Hostiles . | . . . Parts Melted 9 | . 9 . Heat Transferred 2192 | . 1933 259 Parts Sabotaged . | . . . Parts Stolen . | . . . Parts Stripped . | . . . Power Chain Reactions . | . . . Alert | -11 -10 -9 ------- Run | Yrd Mat Mat Maximum Alert Level . | . . . Low Security (%) 100 | 100 100 100 Level 1 . | . . . Level 2 . | . . . Level 3 . | . . . Level 4 . | . . . Level 5 . | . . . High Security . | . . . Max Security . | . . . Peak Influence 112 | . 112 40 Initial 39 | . . 39 Average 17 | . 18 14 Influence Increases 340 | . 229 111 Destroy 0b10 Robot/C 240 | . 160 80 Destroy 0b10 Robot/NC 15 | . 15 . Destroy Leader 52 | . 42 10 Successful Hack 16 | . 11 5 Disable Machine 15 | . . 15 Destroy Structure 2 | . 1 1 Influence Decreases 340 | . 135 205 Entered New Map 55 | . . 55 Time Decay 229 | . 135 94 Lost Part 56 | . . 56 Squads Dispatched 1 | . 1 . Investigation . | . . . Extermination . | . . . Reinforcement 1 | . 1 . Assault . | . . . Garrison . | . . . Intercept . | . . . Searches Triggered . | . . . Construction Impeded . | . . . Haulers Reinforced . | . . . Active Scanning Responses . | . . . Cargo Convoy Interrupts . | . . . Stealth | -11 -10 -9 --------- Run | Yrd Mat Mat Distress Signals 3 | . 1 2 Communications Jammed . | . . . Distress Signals . | . . . Times Spotted 27 | . 15 12 Peak Tracking Total 5 | . 3 5 Tactical Retreats . | . . . Traps | -11 -10 -9 ------- Run | Yrd Mat Mat Traps Triggered 1 | . 1 . Indirectly . | . . . Trap Hack Attempts . | . . . Triggered . | . . . Disarmed . | . . . Reprogrammed . | . . . Reused . | . . . Traps Extracted . | . . . Installed . | . . . Triggered . | . . . Machines | -11 -10 -9 ---------- Run | Yrd Mat Mat Machines Disabled 1 | . . 1 Max in Single Turn 1 | . . 1 Machines Repaired . | . . . Machines Dismantled . | . . . Machines Sabotaged . | . . . Overloaded Fab Kills . | . . . Hacking | -11 -10 -9 --------- Run | Yrd Mat Mat Machines Accessed 4 | . 3 1 Terminals 4 | . 3 1 Fabricators . | . . . Repair Stations . | . . . Recycling Units . | . . . Scanalyzers . | . . . Garrison Access . | . . . Total Hacks 9 | . 7 2 Successful 6 | . 5 1 Failed 3 | . 2 1 Catastrophic . | . . . Database Lockouts . | . . . Manual 7 | . 5 2 Terminals 9 | . 7 2 Fabricators . | . . . Repair Stations . | . . . Recycling Units . | . . . Scanalyzers . | . . . Garrison Access . | . . . Terminal Hacks 1 | . 1 . Maintenance Status 1 | . 1 . Fabricator Hacks . | . . . Repair Station Hacks . | . . . Recycling Unit Hacks . | . . . Scanalyzer . | . . . Garrison Access Hacks . | . . . Unauthorized Hacks 5 | . 4 1 Terminals 5 | . 4 1 Track 1 | . 1 . Botnet 4 | . 3 1 Fabricators . | . . . Repair Stations . | . . . Recycling Units . | . . . Scanalyzers . | . . . Garrison Access . | . . . Data Cores Recovered . | . . . Used . | . . . Hacking Detections 3 | . 3 . Full Trace Events 1 | . 1 . Feedback Events . | . . . Feedback Blocked . | . . . Robot Schematics Acquired . | . . . Robots Built . | . . . Authchips . | . . . Time . | . . . Total Robot Build Rating . | . . . Part Schematics Acquired . | . . . Parts Built . | . . . Authchips . | . . . Time . | . . . Total Part Build Rating . | . . . Part Studies Acquired . | . . . Parts Repaired . | . . . Time . | . . . Parts Recycled . | . . . Recycled Matter . | . . . Retrieved Matter . | . . . Retrieved Components . | . . . Parts Scanalyzed . | . . . Part Schematics Acquired . | . . . Parts Damaged . | . . . Bothacking | -11 -10 -9 ------------ Run | Yrd Mat Mat Used RIF Installer . | . . . Robots Hacked . | . . . Non-combat . | . . . Combat . | . . . Robot Hacks Applied . | . . . Relay Couplers Released . | . . . Fabnet Peak Effective % . | . . . Robots Rewired . | . . . Allies Hacked . | . . . Hacks Repelled . | . . . Allies | -11 -10 -9 -------- Run | Yrd Mat Mat Total Allies . | . . . Largest Group . | . . . Highest-Rated Group . | . . . Highest-Rated Ally . | . . . Total Orders . | . . . Ally Attacks . | . . . Total Damage . | . . . Kills . | . . . Allies Corrupted . | . . . Allies Melted . | . . . Intel | -11 -10 -9 ------- Run | Yrd Mat Mat Active Infowar (turns) . | . . . Robot Analysis Total . | . . . Derelict Logs Recovered . | . . . Drone Launches . | . . . Drone Recoveries . | . . . Exploration | -11 -10 -9 ------------- Run | Yrd Mat Mat Turns Passed 1241 | 8 932 301 Spaces Moved 527 | 7 420 100 Core 2 | . . 2 Treads 5 | . . 5 Legs 520 | 7 420 93 Wheels . | . . . Hover . | . . . Flight . | . . . Fastest Speed 120 | 120 120 120 Average Speed 183 | 120 180 201 Slowest Speed 1500 | 120 190 1500 Overloaded Moves . | . . . Propulsion Burnouts . | . . . Robots Hopped . | . . . Potential Cave-ins . | . . . Cave-ins Triggered . | . . . Exploration Rate (%) 27 | 2 66 15 Regions Visited 2 Branch Regions . Pre-discovered Areas . | . . . Known Exits Taken . | . . . Unknown Exits Taken 2 | 1 1 . Scrap Searched . | . . . Spaces Dug . | . . . Terrain Destroyed . | . . . Melee . | . . . Projectile . | . . . AOE . | . . . Terrain Rammed . | . . . Walls Destroyed . | . . . Machines Disabled . | . . . Actions | -11 -10 -9 --------- Run | Yrd Mat Mat Total 674 | 6 511 157 Wait 28 | . 28 . Move 525 | 6 419 100 Hop . | . . . Pick Up 8 | . 5 3 Fast Attach . | . . . Attach 9 | . 2 7 Detach 1 | . 1 . Swap 7 | . 6 1 Drop 7 | . 4 3 Fire 88 | . 45 43 Melee . | . . . Ram . | . . . Kick 1 | . 1 . Crush . | . . . Escape Stasis . | . . . Rewire . | . . . Trap . | . . . Miscellaneous . | . . . Route ------- -11/Scrapyard -10/Materials (discovered 2 exits: *Mat / [*Min]) -9/Materials History --------- Turn | Location | Event 1 | -11/Scrapyard | Discovered new exit (range 3) 9 | -11/Scrapyard | Entered Materials 313 | -10/Materials | Build established: Mutant 688 | -10/Materials | Discovered new exit (range 6) 848 | -10/Materials | Core integrity fell below 50% 913 | -10/Materials | Discovered new exit (range 16) 941 | -10/Materials | Entered another Materials area 941 | -9/Materials | Evolved 2 slots: Propulsion x2 1088 | -9/Materials | Lost 5 parts (1p2n2w) 1223 | -9/Materials | Core integrity fell below 50% 1236 | -9/Materials | Core integrity fell below 20% 1237 | -9/Materials | Lost 5 parts (1p3n1w) 1242 | -9/Materials | Destroyed by Y-45 Defender with Beam Rifle Last Messages --------------- 01195_ U-05 Engineer lays Concrete. 01196_ K-01 Serf collects debris. 01197_ U-05 Engineer lays Concrete. 01198_ R-06 Scavenger collects Corrupted Imp. Aluminum Leg. 01198_ U-05 Engineer lays Concrete. 01199_ Lgt. Treads destroyed. 01200_ K-01 Serf collects debris. 01200_ U-05 Engineer lays Concrete. 01201_ R-06 Scavenger collects Wheel. 01201_ U-05 Engineer lays Concrete. 01202_ R-06 Scavenger destroyed. 01204_ K-01 Serf collects debris. 01204_ U-05 Engineer lays Concrete. 01205_ Acquired 60 matter. 01206_ Imp. Aluminum Leg destroyed. 01206_ U-05 Engineer lays Concrete. 01217_ W-16 Scout sends out distress signal. 01226_ Acquired Imp. Ion Engine. 01234_ K-01 Serf collects debris. Map ----- +----------------------------------------------------+ | | | | | | | | | | | | | | | | | | | | | | | | | | | | | | | ?????????????????????????????????????????????????? | | ?????????????????????????????????????????????????? | | ?????????############???#####????????????????????? | | ########## #???#"""#????????????????????? | | + #???#"Y"#????????????????????? | | # #??##" "###??????????????????? | | # ####### #??# =k ###????????????????? | | + # # #??#= % *# ????????????????? | | #+###### + # #??# * %# #????????????????? | | # "T" ## # """# #??#! !# #????????????????? | | # ## # """# #??# @ g # #????????????????? | | # ## #? """# #??# gY # #????????????????? | | #[ ! ## #? # ########/## #????????????????? | | ########### #?? ]# *%=! #????????????????? | | #??#############=* #????????????????? | | #??????????????#%= #????????????????? | | #??????????????# #????????????????? | | #??????????????# #????????????????? | | #??????????????# #????????????????? | | ?????? %=????????????????? | | ####################?????## ???????????????? | | ??????????????????????????# "T" ??????????????? | | ??????????????????????????# ?????????????? | | ??????????????????????????+ #????????????? | | ??????????????????????????# #????????????? | | ??????????????????????????# #????????????? | | ??????????????????????????# #????????????? | | ??????????????????????????# ????????????? | | ??????????????????????????# ????????????? | | ?????????????????????????? ? #???????????? | | ?????????????????????????????????? ??????????????? | | ?????????????????????????????????????????????????? | | ?????????????????????????????????????????????????? | | ?????????????????????????????????????????????????? | | ?????????????????????????????????????????????????? | +----------------------------------------------------+ Best States ------------- Heat Dissipation 28 Energy Generation 14 Energy Capacity 250 Matter Stores 300 Matter Capacity 300 Sight Range 16 Terrain Scan Density 10 Evasion (%) 55 Recoil Reduction 2 Item Schematics ----------------- None Robot Schematics ------------------ None Fabricated ------------ Nothing Repaired ---------- Nothing Studied --------- None Alien Tech Used ----------------- None Achievements -------------- None Challenges ------------ None Game ------ Seed MatterDecoderDissipator Manual? 0 Play Time 00:11:08 Cumulative 24.7 hours Start 2025.10.27 @ 21:02:03 End 2025.10.27 @ 21:10:48 Sessions 1 Manual Loads 0 Difficulty Rogue Special Mode None Game No. 82 Rogue 82 Adventurer 0 Explorer 0 Win Type - Total 0 Types 0/0/0/0/0/0/0/0/0/0 Lore% 10 Gallery% 22 Achievement% 18 Wizard Run 0 Options --------- Layout 1 ASCII 0 Keyboard 0 Movement Mouse Keybinds 0 Fullscreen 2 Font 32/SmallcapsGlow Map View 50x35 Zoom Use 0% Tactical HUD 1 Map Filters NONE Filters NONE Steam X RUN: 29d2b605-5144-4bfd-b5e0-0df705121989